[Event "Odense-ch IM-2 2018"]
[Site "Odense"]
[Date "2018.10.12"]
[Round "1"]
[White "Pedersen (2306), IM Steffen"]
[Black "Grove, Peter"]
[Result "1/2-1/2"]
[ECO "D25"]
[WhiteElo "2306"]
[BlackElo "2213"]
[Annotator "ChessBase"]
[PlyCount "21"]
[EventDate "2018.10.12"]
[EventType "tourn"]
[EventCountry "DEN"]
[SourceTitle "playchess.com"]
[Source "ChessBase"]
[SourceQuality "1"]
[TimeControl "40/5400+30:1800+30"]

1. d4 {[%emt 0:00:00]} d5 2. c4 dxc4 {[%emt 0:00:00]} 3. Nf3 {[%emt 0:00:59]} Nf6 {[%emt 0:00:37]} 4. e3 {[%emt 0:00:27]} b5 {[%emt 0:00:19]} 5. a4 {[%emt 0:12:29]} b4 {[%emt 0:01:22]} 6. Bxc4 {[%emt 0:00:55]} e6 {[%emt 0:00:15]} 7. Nbd2 {[%emt 0:23:08]} Bb7 {[%emt 0:00:50]} 8. a5 {[%emt 0:02:34]} a6 {[%emt 0:00:09]} 9. O-O {[%emt 0:00:51]} Be7 {[%emt 0:00:07]} 10. Qe2 {[%emt 0:03:24]} Nbd7 {[%emt 0:04:27]} 11. e4 {[%emt 0:22:38]} 1/2-1/2

[Event "Odense-ch IM-2 2018"]
[Site "Odense"]
[Date "2018.10.12"]
[Round "1"]
[White "Heimisson, Hilmir Freyr"]
[Black "Andersen, Lars Rene"]
[Result "1-0"]
[ECO "A40"]
[WhiteElo "2271"]
[BlackElo "2155"]
[Annotator "ChessBase"]
[PlyCount "55"]
[EventDate "2018.10.12"]
[EventType "tourn"]
[EventCountry "DEN"]
[SourceTitle "playchess.com"]
[Source "ChessBase"]
[SourceQuality "1"]
[TimeControl "40/5400+30:1800+30"]

1. d4 {[%emt 0:00:00]} g6 {[%emt 0:00:00]} 2. Nf3 {[%emt 0:00:00]} Bg7 {[%emt 0:00:00]} 3. g3 {[%emt 0:00:00]} Nf6 {[%emt 0:00:00]} 4. Bg2 {[%emt 0:00:00]} O-O {[%emt 0:00:00]} 5. O-O {[%emt 0:00:06]} d6 {[%emt 0:00:01]} 6. a4 {[%emt 0:00:04]} a5 {[%emt 0:02:04]} 7. Nc3 {[%emt 0:01:06]} Na6 {[%emt 0:00:37]} 8. e4 {[%emt 0:07:25]} c6 {[%emt 0:00:14]} 9. h3 {[%emt 0:05:19]} h6 {[%emt 0:01:01]} 10. Be3 {[%emt 0:01:02]} Nb4 {[%emt 0:00:52]} 11. Re1 {[%emt 0:03:19]} Qc7 {[%emt 0:01:06]} 12. Qd2 {[%emt 0:01:35]} Kh7 {[%emt 0:01:13]} 13. Rad1 {[%emt 0:01:27]} e5 {[%emt 0:00:33]} 14. dxe5 {[%emt 0:11:16]} dxe5 {[%emt 0:00:11]} 15. Bc5 {[%emt 0:00:04]} Be6 {[%emt 0:12:33]} 16. Bxf8 {[%emt 0:00:09]} Bxf8 {[%emt 0:00:05]} 17. Qe2 {[%emt 0:16:25]} Bc5 {[%emt 0:03:41]} 18. Rd2 {[%emt 0:02:29]} Re8 {[%emt 0:02:59]} 19. Red1 {[%emt 0:00:57]} Nd7 {[%emt 0:01:23]} 20. Rxd7 {[%emt 0:10:12]} Bxd7 {[%emt 0:07:20]} 21. Qc4 {[%emt 0:00:09]} Bxf2+ {[%emt 0:08:40]} 22. Kxf2 {[%emt 0:00:07]} Qb6+ {[%emt 0:00:40]} 23. Kf1 {[%emt 0:01:30]} Be6 {[%emt 0:01:25]} 24. Qe2 {[%emt 0:01:08]} Nxc2 {[%emt 0:12:39]} 25. Qxc2 {[%emt 0:01:04]} Bb3 {[%emt 0:00:25]} 26. Qf2 {[%emt 0:01:04]} Qa6+ {[%emt 0:01:22]} 27. Kg1 {[%emt 0:00:52]} Bxd1 {[%emt 0:00:10]} 28. Ng5+ {[%emt 0:00:32]} 1-0

[Event "Odense-ch IM-2 2018"]
[Site "Odense"]
[Date "2018.10.13"]
[Round "3"]
[White "Heimisson, Hilmir Freyr"]
[Black "Bromann, Thorbjorn"]
[Result "0-1"]
[ECO "A41"]
[WhiteElo "2271"]
[BlackElo "2387"]
[Annotator "RC"]
[PlyCount "150"]
[EventDate "2018.10.12"]
[EventType "tourn"]
[EventCountry "DEN"]
[SourceTitle "playchess.com"]
[Source "ChessBase"]
[SourceQuality "1"]
[TimeControl "40/5400+30:1800+30"]

1. Nf3 {[%emt 0:00:00]} g6 {[%emt 0:05:28]} 2. d4 {[%emt 0:01:10]} Bg7 {[%emt 0:00:05]} 3. g3 {[%emt 0:00:49]} d6 {[%emt 0:06:55]} 4. Bg2 {[%emt 0:00:00]} Nc6 {[%emt 0:00:05]} 5. O-O {[%emt 0:02:03]} e5 {[%emt 0:00:43]} 6. dxe5 {[%emt 0:08:57]} dxe5 {[%emt 0:00:47]} 7. Qxd8+ {[%emt 0:02:57]} Nxd8 {[%emt 0:00:16]} 8. e4 {[%emt 0:01:45]} Be6 {[%emt 0:09:40]} 9. b3 {[%emt 0:03:44]} Ne7 {[%emt 0:01:44]} 10. Ba3 {[%emt 0:05:57]} f6 {[%emt 0:03:03]} 11. Rd1 {[%emt 0:03:30]} Nf7 {[%emt 0:00:49]} 12. Nc3 {[%emt 0:01:33]} c6 {[%emt 0:01:06]} 13. Bf1 {[%emt 0:03:24]} Nc8 {[%emt 0:07:06]} 14. Bc4 {[%emt 0:18:27]} Bxc4 {[%emt 0:04:24]} 15. bxc4 {[%emt 0:00:05]} Nb6 {[%emt 0:00:51]} 16. c5 {[%emt 0:13:39]} Nc4 {[%emt 0:00:30]} 17. Bc1 {[%emt 0:00:58]} Bf8 {[%emt 0:01:29]} 18. Rb1 {[%emt 0:00:38]} Nd8 {[%emt 0:05:35]} 19. Na4 {[%emt 0:04:13]} b5 {[%emt 0:15:25]} 20. cxb6 {[%emt 0:01:36]} axb6 {[%emt 0:00:08]} 21. Nxb6 {[%emt 0:00:09]} Nxb6 {[%emt 0:00:36]} 22. Rxb6 {[%emt 0:00:04]} Rxa2 {[%emt 0:00:06]} 23. Be3 {[%emt 0:03:58]} Ra8 {[%emt 0:11:16]} 24. Kg2 {[%emt 0:03:36]} Rg8 {[%emt 0:03:24]} 25. h4 {[%emt 0:00:45]} h5 {[%emt 0:03:09]} 26. Ne1 {[%emt 0:10:25]} Rg7 {[%emt 0:03:44]} 27. Bh6 {[%emt 0:00:16]} Rc7 {[%emt 0:00:25]} 28. Bxf8 {[%emt 0:00:21]} Kxf8 {[%emt 0:00:02]} 29. Nd3 {[%emt 0:00:20]} Ke7 {[%emt 0:02:43]} 30. Nb4 {[%emt 0:01:17]} Rd7 {[%emt 0:02:36]} 31. Rb1 {[%emt 0:01:14]} Rc8 {[%emt 0:01:32]} 32. Rb3 {[%emt 0:01:06]} Rd4 {[%emt 0:02:32]} 33. Kf3 {[%emt 0:01:14]} Rc4 {[%emt 0:00:29]} 34. Ra3 {[%emt 0:01:09]} Rc7 {[%emt 0:02:10]} 35. Ra8 {[%emt 0:01:49]} Rb7 {[%emt 0:05:52]} 36. Rxb7+ {[%emt 0:02:43]} Nxb7 {[%emt 0:00:02]} 37. Nd3 {[%emt 0:01:13]} Nd6 {[%emt 0:00:33]} 38. Ra7+ {[%emt 0:00:58]} Ke6 {[%emt 0:01:07]} 39. Rg7 {[%emt 0:00:35]} Rxc2 {[%emt 0:00:30]} 40. Rxg6 {[%emt 0:00:44]} Rc3 {[%emt 0:00:31]} 41. Ke3 {[%emt 0:30:24]} c5 {[%emt 0:05:08]} 42. Ke2 {[%emt 0:00:00]} Nxe4 {[%emt 0:01:32]} 43. g4 {[%emt 0:00:00]} hxg4 {[%emt 0:04:41]} 44. Rxg4 {[%emt 0:00:00]} Kf5 {[%emt 0:13:07]} 45. Rg1 {[%emt 0:00:00]} c4 {[%emt 0:02:01]} 46. Nb4 {[%emt 0:00:00]} Rh3 {[%emt 0:03:38]} 47. Nc2 {[%emt 0:00:00]} Rh2 {[%emt 0:01:21]} 48. Ne3+ {[%emt 0:00:00]} Ke6 {[%emt 0:00:10]} 49. Nxc4 {[%emt 0:00:00]} Rxf2+ {[%emt 0:00:59]} 50. Kd3 {[%emt 0:00:00]} Rf4 {[%emt 0:00:29]} 51. Ne3 {[%emt 0:00:00]} Rxh4 {[%emt 0:00:28]} 52. Rb1 {[%emt 0:00:00]} Nd6 {[%emt 0:00:53]} 53. Rb6 {[%emt 0:00:00]} Rd4+ {[%emt 0:00:13]} 54. Ke2 {[%emt 0:00:00]} f5 {[%emt 0:00:20]} 55. Kf3 {[%emt 0:00:00]} f4 {[%emt 0:00:46]} 56. Ng4 {[%emt 0:00:00]} Rd3+ {[%emt 0:01:18]} 57. Ke2 {[%emt 0:00:00]} Rg3 {[%emt 0:00:12]} 58. Nf2 {[%emt 0:00:03]} Re3+ {[%emt 0:00:09]} 59. Kf1 {[%emt 0:00:36]} Kd5 {[%emt 0:00:16]} 60. Ra6 {[%emt 0:00:26]} Nc4 {[%emt 0:00:41]} 61. Ra8 {[%emt 0:01:17]} Nd2+ {[%emt 0:01:22]} 62. Kg2 {[%emt 0:00:05]} Rg3+ {[%emt 0:00:31]} 63. Kh1 {[%emt 0:00:01]} Nf3 {[%emt 0:00:29]} 64. Ra1 {[%emt 0:00:28]} Rg8 {[%emt 0:01:10]} 65. Rd1+ {[%emt 0:01:05]} Ke6 {[%emt 0:00:32]} 66. Ne4 {[%emt 0:00:26]} Kf5 {[%emt 0:00:27]} 67. Nd6+ {[%emt 0:00:32]} Kg4 {[%emt 0:00:34]} 68. Nf7 {[%emt 0:00:33]} Kg3 {[%emt 0:00:31]} 69. Rd6 {[%emt 0:02:28]} Rg7 {[%emt 0:00:29]} 70. Nh6 {[%emt 0:00:24]} Rh7 {[%emt 0:00:32]} 71. Rg6+ {[%emt 0:00:24]} Kf2 {[%emt 0:00:17]} 72. Rg2+ {[%emt 0:00:11]} Ke3 {[%emt 0:00:26]} 73. Rg6 {[%emt 0:00:16]} Ke4 {[%emt 0:00:47]} 74. Ra6 {[%emt 0:00:13]} Rg7 {[%emt 0:00:31]} 75. Ra4+ {[%emt 0:00:10]} Nd4 {[%emt 0:00:11]} 0-1